Cogmind - Beta 14 @@@ ROGUE MODE // 2024.09.10 @ 17:52:04 Player: vault Result: Destroyed by as-31486 with Assembled Rifle Performance ------------- Evolutions (0) 0 Regions Visited (2) 400 Robots Destroyed (5) 25 Value Destroyed (215) 215 Prototype IDs (0) 0 Alien Tech Used (0) 0 Bonus (0) 0 TOTAL SCORE: 640 Bonus ------- None Cogmind --------- Core Integrity 0/250 Matter 60/300 Energy 96/100 System Corruption 2% Temperature Cool (2) Movement Walking (190) Ox1 Location -10/Mines Parts ------- > --- POWER (1) -------- (None) > --- PROPULSION (2) --- Aluminum Leg Aluminum Leg > --- UTILITY (2) ------ Small Storage Unit Large Storage Unit > --- WEAPON (2) ------- Small Laser > --- INVENTORY (15) --- Heat Sink Improved Heat Sink Small Laser Peak State ------------ > --- POWER ------------ Ion Engine > --- PROPULSION ------- Light Treads Light Treads > --- UTILITY ---------- Small Storage Unit Large Storage Unit > --- WEAPON ----------- Assault Rifle Assault Rifle > --- INVENTORY -------- Light Ion Engine Aluminum Leg [Rating: 7] Favorites ----------- Power Ion Engine Engine Ion Engine Propulsion Light Treads Treads Light Treads Leg Aluminum Leg Utility Small Storage Unit Storage Small Storage Unit Weapon Assault Rifle Energy Gun Small Laser Ballistic Gun Assault Rifle Build | -11 -10 -10 ------- Run | Yrd Mat Min Slots Evolved . | . . . Power . | . . . Propulsion . | . . . Utility . | . . . Weapon . | . . . Parts Attached 14 | 8 1 5 Power 4 | 2 . 2 Engine 4 | 2 . 2 Core . | . . . Reactor . | . . . Propulsion 4 | 2 . 2 Treads 2 | 2 . . Leg 2 | . . 2 Wheel . | . . . Hover . | . . . Flight . | . . . Utility 2 | 1 1 . Device . | . . . Storage 2 | 1 1 . Processor . | . . . Hackware . | . . . Protection . | . . . Artifact . | . . . Weapon 4 | 3 . 1 Energy Gun 2 | 1 . 1 Energy Cannon . | . . . Ballistic Gun 2 | 2 . . Ballistic Cannon . | . . . Launcher . | . . . Special Weapon . | . . . Impact Weapon . | . . . Slashing Weapon . | . . . Piercing Weapon . | . . . Special Melee Weapon . | . . . Unidentified Prototypes . | . . . Parts Lost 7 | . . 7 Power 3 | . . 3 Propulsion 2 | . . 2 Utility . | . . . Weapon 2 | . . 2 Highest Loss Streak 5 | . . 5 To Critical Strikes . | . . . Average Slot Usage (%) 92 | . 97 91 Engine 11 | . 14 10 Treads 23 | . 28 21 Leg 4 | . . 5 Storage 27 | . 26 28 Energy Gun 2 | . . 2 Ballistic Gun 22 | . 28 21 Peak Build Rating 7 | 6 7 7 Average Rating 6 | 4 6 6 On Entrance 4 | . 6 7 Naked Turns . | . . . Heaviest Build 34 | 14 34 34 Greatest Support 40 | 40 40 40 Greatest Overweight (x) 1 | 1 . 1 Average Overweight (x) . | . . . Largest Inventory Capacity 15 | 8 15 15 Average Capacity 13 | 6 13 15 Most Carried 6 | 2 3 6 Average Carried 3 | 1 2 4 Final Capacity 15 | 8 15 15 Final Carried 3 | 2 2 3 Class Distribution -------------------- 100% | Mutant Dominant Class ---------------- Mutant | -10/Materials Mutant | -10/Mines Resources | -11 -10 -10 ----------- Run | Yrd Mat Min Matter Collected 117 | 40 . 77 Remotely . | . . . Salvage Created 172 | . . 172 Parts 10 | . . 10 Haulers Intercepted . | . . . Recyclers Shooed 1 | . . 1 Parts Field Recycled . | . . . Retrieved Matter . | . . . Parts Self-Destructed . | . . . Prevented . | . . . Kills | -11 -10 -10 ------- Run | Yrd Mat Min Combat Hostiles Destroyed 5 | . . 5 Melee 1 | . . 1 Guns 4 | . . 4 Classes Destroyed 2 | . . 2 Grunt 4 | . . 4 Demolisher 1 | . . 1 Best Kill Streak 2 | . . 2 Combat Bots Only 2 | . . 2 Max Kills in Single Turn 1 | . . 1 Gunslinging . | . . . Exploded . | . . . Melee 1 | . . 1 Uniques/NPCs Destroyed . | . . . Combat | -11 -10 -10 -------- Run | Yrd Mat Min Hostile Shots Fired 84 | . 13 71 Missed 20 | . 4 16 Damage Taken 1130 | . 102 1028 Core 261 | . 12 249 Absorbed by Shields . | . . . Core Remaining (%) 100 | 100 . . Volleys Fired 16 | 2 . 14 Largest 2 | 2 . 2 Hottest 40 | 40 . 40 Shots Fired 32 | 4 . 28 Gun 32 | 4 . 28 Cannon . | . . . Launcher . | . . . Special . | . . . Kinetic 32 | 4 . 28 Thermal . | . . . Explosive . | . . . Electromagnetic . | . . . Robot Hit Streak 10 | 2 . 10 Robot Miss Streak 5 | 1 . 5 Penetration Max . | . . . Secondary Targets . | . . . Shots Hit Robots 23 | 2 . 21 Core Hits 14 | . . 14 Critical Kills . | . . . Critical Parts Destroyed . | . . . Critical Strikes . | . . . Melee Attacks . | . . . Impact . | . . . Slashing . | . . . Piercing . | . . . Sneak Attacks . | . . . Combat Hostiles . | . . . Follow-up Attacks . | . . . Damage Inflicted 357 | 22 3 332 Guns 287 | 22 . 265 Cannons . | . . . Explosions . | . . . Melee . | . . . Ramming 70 | . 3 67 Kinetic 287 | 22 . 265 Thermal . | . . . Explosive . | . . . Electromagnetic . | . . . Impact . | . . . Slashing . | . . . Piercing . | . . . Highest Corruption 2 | . . 2 Average Corruption 2 | . . 2 Corruption Purged . | . . . Corruption Blocked . | . . . Effects 1 | . . 1 Message Errors 1 | . . 1 Overload Shots . | . . . Overflow Damage . | . . . Projectiles . | . . . Explosions . | . . . Melee . | . . . Knockbacks . | . . . Impact . | . . . Kinetic . | . . . Secondary . | . . . Self-Inflicted Damage . | . . . Shots . | . . . Rammed 11 | . 2 9 Targets Rammed 16 | . 2 14 Kicked 4 | . . 4 Crushed 1 | . . 1 Highest Temperature 4 | . . 4 Average Temperature 2 | . . 2 Received Heat Transfer 285 | . 54 231 Siege Activations . | . . . Robots Corrupted . | . . . Combat Hostiles . | . . . Parts Fried . | . . . Impact Corruptions . | . . . Robots Melted . | . . . Combat Hostiles . | . . . Parts Melted . | . . . Heat Transferred . | . . . Parts Sabotaged . | . . . Parts Stolen . | . . . Parts Stripped . | . . . Power Chain Reactions . | . . . Alert | -11 -10 -10 ------- Run | Yrd Mat Min Peak Influence 95 | . 2 95 Initial . | . . . Average 41 | . . 60 Maximum Alert Level . | . . . Low Security (%) 100 | 100 100 100 Level 1 . | . . . Level 2 . | . . . Level 3 . | . . . Level 4 . | . . . Level 5 . | . . . High Security . | . . . Max Security . | . . . Squads Dispatched 1 | . 1 . Investigation 1 | . 1 . Extermination . | . . . Reinforcement . | . . . Assault . | . . . Garrison . | . . . Intercept . | . . . Searches Triggered . | . . . Construction Impeded . | . . . Haulers Reinforced . | . . . Active Scanning Responses . | . . . Cargo Convoy Interrupts . | . . . Stealth | -11 -10 -10 --------- Run | Yrd Mat Min Distress Signals 1 | . . 1 Communications Jammed . | . . . Distress Signals . | . . . Times Spotted 14 | . 5 9 Peak Tracking Total 5 | . 5 4 Tactical Retreats 2 | . . 2 Traps | -11 -10 -10 ------- Run | Yrd Mat Min Traps Triggered 1 | . 1 . Indirectly . | . . . Trap Hack Attempts . | . . . Triggered . | . . . Disarmed . | . . . Reprogrammed . | . . . Reused . | . . . Traps Extracted . | . . . Installed . | . . . Triggered . | . . . Machines | -11 -10 -10 ---------- Run | Yrd Mat Min Machines Disabled . | . . . Max in Single Turn . | . . . Machines Repaired . | . . . Machines Dismantled . | . . . Machines Sabotaged . | . . . Overloaded Fab Kills . | . . . Hacking | -11 -10 -10 --------- Run | Yrd Mat Min Machines Accessed 1 | . 1 . Terminals 1 | . 1 . Fabricators . | . . . Repair Stations . | . . . Recycling Units . | . . . Scanalyzers . | . . . Garrison Access . | . . . Total Hacks 3 | . 3 . Successful 2 | . 2 . Failed 1 | . 1 . Catastrophic . | . . . Database Lockouts . | . . . Manual 1 | . 1 . Terminals 3 | . 3 . Fabricators . | . . . Repair Stations . | . . . Recycling Units . | . . . Scanalyzers . | . . . Garrison Access . | . . . Terminal Hacks 2 | . 2 . Record 1 | . 1 . Hauler Manifests 1 | . 1 . Fabricator Hacks . | . . . Repair Station Hacks . | . . . Recycling Unit Hacks . | . . . Scanalyzer . | . . . Garrison Access Hacks . | . . . Unauthorized Hacks . | . . . Terminals . | . . . Fabricators . | . . . Repair Stations . | . . . Recycling Units . | . . . Scanalyzers . | . . . Garrison Access . | . . . Data Cores Recovered . | . . . Used . | . . . Hacking Detections 1 | . 1 . Full Trace Events 1 | . 1 . Feedback Events . | . . . Feedback Blocked . | . . . Robot Schematics Acquired . | . . . Robots Built . | . . . Authchips . | . . . Time . | . . . Total Robot Build Rating . | . . . Part Schematics Acquired . | . . . Parts Built . | . . . Authchips . | . . . Time . | . . . Total Part Build Rating . | . . . Parts Repaired . | . . . Time . | . . . Parts Recycled . | . . . Recycled Matter . | . . . Retrieved Matter . | . . . Retrieved Components . | . . . Parts Scanalyzed . | . . . Part Schematics Acquired . | . . . Parts Damaged . | . . . Bothacking | -11 -10 -10 ------------ Run | Yrd Mat Min Used RIF Installer . | . . . Robots Hacked . | . . . Non-combat . | . . . Combat . | . . . Robot Hacks Applied . | . . . Relay Couplers Released . | . . . Fabnet Peak Effective % . | . . . Robots Rewired . | . . . Allies Hacked . | . . . Hacks Repelled . | . . . Allies | -11 -10 -10 -------- Run | Yrd Mat Min Total Allies . | . . . Largest Group . | . . . Highest-Rated Group . | . . . Highest-Rated Ally . | . . . Total Orders . | . . . Ally Attacks . | . . . Total Damage . | . . . Kills . | . . . Allies Corrupted . | . . . Allies Melted . | . . . Intel | -11 -10 -10 ------- Run | Yrd Mat Min Robot Analysis Total . | . . . Derelict Logs Recovered 2 | . . 2 Drone Launches . | . . . Drone Recoveries . | . . . Exploration | -11 -10 -10 ------------- Run | Yrd Mat Min Turns Passed 711 | 83 145 483 Spaces Moved 335 | 44 88 203 Core 9 | 9 . . Treads 282 | 35 88 159 Legs 44 | . . 44 Wheels . | . . . Hover . | . . . Flight . | . . . Fastest Speed 50 | 50 160 160 Average Speed 161 | 143 160 166 Slowest Speed 190 | 160 160 190 Overloaded Moves . | . . . Propulsion Burnouts . | . . . Robots Hopped . | . . . Cave-ins Triggered 1 | . . 1 Exploration Rate (%) 18 | 5 22 27 Regions Visited 2 Branch Regions 1 Pre-discovered Areas . | . . . Known Exits Taken . | . . . Unknown Exits Taken 2 | 1 1 . Scrap Searched . | . . . Spaces Dug . | . . . Terrain Destroyed . | . . . Melee . | . . . Projectile . | . . . AOE . | . . . Terrain Rammed . | . . . Walls Destroyed . | . . . Machines Disabled . | . . . Actions | -11 -10 -10 --------- Run | Yrd Mat Min Total 454 | 58 91 305 Wait 63 | . . 63 Move 333 | 43 87 203 Hop . | . . . Pick Up 10 | 3 1 6 Fast Attach 6 | 6 . . Attach 7 | 1 1 5 Detach . | . . . Swap 1 | 1 . . Drop 2 | 2 . . Fire 16 | 2 . 14 Melee . | . . . Ram 2 | . . 2 Kick 4 | . . 4 Crush 10 | . 2 8 Escape Stasis . | . . . Rewire . | . . . Trap . | . . . Miscellaneous . | . . . Route ------- -11/Scrapyard -10/Materials -10/Mines (discovered 2 exits: [*Mat] / Exi) History --------- Turn | Location | Event 12 | -11/Scrapyard | Discovered new exit (range 15) 84 | -11/Scrapyard | Entered Materials 214 | -10/Materials | Discovered new exit (range 8) 229 | -10/Materials | Entered Mines 274 | -10/Mines | Identified exit to Exiles 287 | -10/Mines | Discovered new exit (range 14) 301 | -10/Mines | Build established: Mutant 303 | -10/Mines | Learned Materials emergency access door positions 561 | -10/Mines | Assembled infested the area 603 | -10/Mines | Core integrity fell below 50% 616 | -10/Mines | Core integrity fell below 20% 630 | -10/Mines | Crushed by falling debris 638 | -10/Mines | Lost 5 parts (1p2n2w) 712 | -10/Mines | Destroyed by as-31486 with Assembled Rifle Last Messages --------------- 00624_ G|IU 00630_ The unstable cave ceiling collapses. 00630_ Crushed by falling debris. 00630_ K-01 Serf collects debris. 00631_ The unstable cave ceiling collapses. 00633_ K-01 Serf collects debris. 00634_ The unstable cave ceiling collapses. 00637_ K-01 Serf collects debris. 00645_ Acquired Sml. Laser. 00648_ Acquired Heat Sink. 00648_ U-05 Engineer builds a Wall. 00651_ K-01 Serf collects debris. 00653_ U-05 Engineer builds a Wall. 00655_ Kicked U-05 Engineer. 00657_ Kicked U-05 Engineer out of the way. 00667_ K-01 Serf collects debris. 00694_ U-05 Engineer destroyed. 00697_ Kicked K-01 Serf. 00702_ Kicked K-01 Serf out of the way. Map ----- +----------------------------------------------------+ | | | | | | | | | | | ??????????????????????????????????????????? | | ??????????????????????????????????????????? | | ??????????????????????????????????????????? | | ??????????????????????????????????????????? | | ????????????########??????????????????????? | | ????????????# #??????????????????????? | | ????????????# #??????????????????????? | | ????????????# #??????????????????????? | | ????????????# #??????????????????????? | | ??#######???# < #??????????????????????? | | ??# %=#???# #??????????????????????? | | ??# = #???### ####??????????????????????? | | ??# #?????# #?????????????????????????? | | ??#% #?????# #?????????????????????????? | | ??# #?????# #?????????????????????????? | | ??# #?????# #?????????????????????????? | | ??#### ##?##### ########??????????????????? | | ?????# #### ## ## ##?????????????????? | | ?????# # #?????????????????? | | ?????# ###k ##########????????? | | ????## ###k @ #????????? | | ????# ## a #????????? | | ????# #########!### #????????? | | ????# ### ##???????#*#????????????? | | ????# ??## ##???????##%#????????????? | | ????# ???#########???????## !#????????????? | | ????# ???????????????????# #????????????? | | ????# ?????????####?????## #????????????? | | ????##????????## ####### ##????????????? | | ?????????????## #?????????????? | | ????????????## = ##?????????????? | | ??????#????## ## ##??????????????? | | ??????# ??## ## ### #???????????????? | | ??????# ## ## ##???????????????? | | ??????# # # # # ###????????????????? | | ?????## ##### #??????????????????? | | ?????# #= #??????????????????? | | ?????# *%# #??????????????????? | | ?????# ##*==# #??????????????????? | | ????# ## # # #?????????????? | | ????# # #??????????????? | | ????## # # # ##??????????????? | | ?????## ## ## #?##???????????????? | | ??????# ?### ##??????????????????? | | ??????## ???#### ###???????????????????? | +----------------------------------------------------+ Best States ------------- Heat Dissipation 25 Energy Generation 10 Energy Capacity 250 Matter Stores 110 Matter Capacity 300 Sight Range 16 Terrain Scan Density 10 Evasion (%) 40 Recoil Reduction 2 Item Schematics ----------------- None Robot Schematics ------------------ None Fabricated ------------ Nothing Alien Tech Used ----------------- None Achievements -------------- None Challenges ------------ None Game ------ Seed TowerCommSabre Manual? 0 Play Time 00:09:02 Cumulative 7.4 hours Start 2024.09.10 @ 17:45:50 End 2024.09.10 @ 17:52:04 Sessions 1 Manual Loads 0 Difficulty Rogue Special Mode None Game No. 14 Rogue 14 Adventurer 0 Explorer 0 Win Type - Total 0 Types 0/0/0/0/0/0/0/0/0 Lore% 3 Gallery% 11 Achievement% 11 Wizard Run 0 Options --------- Layout 1 ASCII 0 Keyboard 0 Movement Numpad Keybinds 0 Fullscreen 1 Font 24/Smallcaps Map View 50x35 Zoom Use 0% Tactical HUD 1 Map Filters NONE Filters NONE Steam 1 RUN: 1417cda7-fdf4-480c-abd3-8f0e43d06e7d